Cogmind - Beta 14 @@@ ROGUE MODE // 2025.03.16 @ 15:15:44 Player: LightKnight Result: Destroyed by B4-BJW(j) with Overtuned Pulse Rifle Performance ------------- Evolutions (0) 0 Regions Visited (5) 1000 Robots Destroyed (10) 50 Value Destroyed (268) 268 Prototype IDs (8) 160 Alien Tech Used (0) 0 Bonus (346) 346 TOTAL SCORE: 1824 Bonus ------- Follower Combat Kills 76 Registered with UFD 300 Friendly Fire -30 Cogmind --------- Core Integrity 0/250 Matter 275/300 Energy 99/100 System Corruption 0% Temperature Cool (12) Movement Core (50) Location -8/Scraptown Parts ------- > --- POWER (1) -------- (None) > --- PROPULSION (2) --- (None) > --- UTILITY (2) ------ (None) > --- WEAPON (2) ------- (None) > --- INVENTORY (5) ---- Makeshift Power Source Surveybot 17 Chip A0-MCA's Component Scanner Makeshift Shrapnel Gun Companion Sword Peak State ------------ > --- POWER ------------ Makeshift Power Source > --- PROPULSION ------- Carbon-fiber Leg Makeshift Leg > --- UTILITY ---------- Cobbler Unit > --- WEAPON ----------- Makeshift Shrapnel Gun Companion Sword > --- INVENTORY -------- A0-MCA's Component Scanner Heavy Battle Rifle [Rating: 26] Favorites ----------- Power Makeshift Power Source Engine Makeshift Power Source Propulsion Carbon-fiber Leg Treads Light Treads Leg Carbon-fiber Leg Utility Cobbler Unit Device Cobbler Unit Storage Small Storage Unit Weapon Heavy Battle Rifle Energy Gun Particle Gun Energy Cannon Beam Cannon Ballistic Gun Heavy Battle Rifle Slashing Weapon Companion Sword Build | -11 -10 -10 -10 -8 -8 ------- Run | Yrd Mat Min Sub Rec Scr Slots Evolved . | . . . . . . Power . | . . . . . . Propulsion . | . . . . . . Utility . | . . . . . . Weapon . | . . . . . . Parts Attached 18 | 1 1 5 6 2 3 Power 2 | . . . 1 1 . Engine 2 | . . . 1 1 . Core . | . . . . . . Reactor . | . . . . . . Propulsion 4 | . . 2 2 . . Treads 2 | . . 2 . . . Leg 2 | . . . 2 . . Wheel . | . . . . . . Hover . | . . . . . . Flight . | . . . . . . Utility 4 | . . 1 1 1 1 Device 4 | . . 1 1 1 1 Storage . | . . . . . . Processor . | . . . . . . Hackware . | . . . . . . Protection . | . . . . . . Artifact . | . . . . . . Weapon 8 | 1 1 2 2 . 2 Energy Gun 2 | 1 . 1 . . . Energy Cannon 1 | . 1 . . . . Ballistic Gun 3 | . . 1 2 . . Ballistic Cannon . | . . . . . . Launcher . | . . . . . . Special Weapon . | . . . . . . Impact Weapon . | . . . . . . Slashing Weapon 2 | . . . . . 2 Piercing Weapon . | . . . . . . Special Melee Weapon . | . . . . . . Unidentified Prototypes 1 | . . . . . 1 Parts Lost 1 | . . . . . 1 Power . | . . . . . . Propulsion . | . . . . . . Utility 1 | . . . . . 1 Weapon . | . . . . . . Highest Loss Streak 1 | . . . . . 1 To Critical Strikes . | . . . . . . Average Slot Usage (%) 76 | . 85 98 100 85 66 Engine 11 | . 14 14 14 14 10 Treads 3 | . . 2 26 . . Leg 20 | . 28 25 1 28 21 Device 13 | . . 12 14 14 13 Storage 2 | . 14 14 14 . . Energy Gun 1 | . 16 24 3 . . Ballistic Gun 20 | . . 1 24 28 19 Peak Build Rating 26 | 6 6 11 21 24 26 Average Rating 18 | 6 6 7 14 23 19 On Entrance 12 | 6 6 6 11 21 24 Naked Turns 57 | . . . . . 57 Heaviest Build 23 | 11 13 16 19 23 22 Greatest Support 40 | 20 20 40 40 35 35 Greatest Overweight (x) 2 | . . . . . 2 Average Overweight (x) . | . . . . . . Largest Inventory Capacity 8 | 8 8 8 8 8 5 Average Capacity 5 | 8 8 8 8 5 5 Most Carried 8 | 6 7 8 8 7 5 Average Carried 4 | 6 6 7 7 4 3 Final Capacity 8 | 8 8 8 8 5 5 Final Carried 8 | 6 7 8 7 5 5 Class Distribution -------------------- 67% | Scavenger-Mutant 32% | Mutant Dominant Class ---------------- Mutant | -10/Materials Mutant | -10/Mines Mutant | -10/Subcaves Scavenger-Mutant | -8/Recycling Scavenger-Mutant | -8/Scraptown Resources | -11 -10 -10 -10 -8 -8 ----------- Run | Yrd Mat Min Sub Rec Scr Matter Collected 1063 | 182 . 58 248 313 262 Remotely . | . . . . . . Salvage Created 286 | . . 106 147 . 33 Parts 12 | . . 4 8 . . Haulers Intercepted . | . . . . . . Recyclers Shooed . | . . . . . . Parts Field Recycled . | . . . . . . Retrieved Matter . | . . . . . . Parts Self-Destructed 14 | . . . 14 . . Prevented . | . . . . . . Kills | -11 -10 -10 -10 -8 -8 ------- Run | Yrd Mat Min Sub Rec Scr Combat Hostiles Destroyed 8 | . . 2 6 . . Guns 7 | . . 1 6 . . Cannons 1 | . . 1 . . . Classes Destroyed 4 | . . 1 3 . . Turret 2 | . . . 2 . . Swarmer 4 | . . . 4 . . Grunt 3 | . . 2 1 . . Subdweller 1 | . . . 1 . . Best Kill Streak 6 | . . 2 6 . . Combat Bots Only 4 | . . 2 4 . . Max Kills in Single Turn 1 | . . 1 1 . . Gunslinging . | . . . . . . Exploded . | . . . . . . Melee . | . . . . . . Uniques/NPCs Destroyed . | . . . . . . Combat | -11 -10 -10 -10 -8 -8 -------- Run | Yrd Mat Min Sub Rec Scr Hostile Shots Fired 103 | . 5 5 78 . 15 Missed 28 | . 3 2 18 . 5 Damage Taken 827 | . 30 35 547 . 215 Core 252 | . 15 . 129 . 108 Absorbed by Shields . | . . . . . . Core Remaining (%) 100 | 100 . . . . . Volleys Fired 37 | . . 6 24 4 3 Largest 2 | . . 2 2 1 1 Hottest 100 | . . 100 98 33 24 Shots Fired 62 | . . 10 45 4 3 Gun 58 | . . 6 45 4 3 Cannon 4 | . . 4 . . . Launcher . | . . . . . . Special . | . . . . . . Kinetic 52 | . . 2 43 4 3 Thermal 6 | . . 4 2 . . Explosive . | . . . . . . Electromagnetic 4 | . . 4 . . . Robot Hit Streak 6 | . . 2 6 . 4 Robot Miss Streak 5 | . . 2 5 . 3 Penetration Max . | . . . . . . Secondary Targets . | . . . . . . Shots Hit Robots 32 | . . 4 25 . 3 Core Hits 20 | . . 3 14 . 3 Critical Kills . | . . . . . . Critical Parts Destroyed 1 | . . . 1 . . Critical Strikes 1 | . . . 1 . . Destroy 1 | . . . 1 . . Melee Attacks 4 | . . . . . 4 Impact . | . . . . . . Slashing 4 | . . . . . 4 Piercing . | . . . . . . Sneak Attacks . | . . . . . . Combat Hostiles . | . . . . . . Follow-up Attacks . | . . . . . . Damage Inflicted 648 | . . 64 522 . 62 Guns 614 | . . 30 522 . 62 Cannons 34 | . . 34 . . . Explosions . | . . . . . . Melee . | . . . . . . Ramming . | . . . . . . Kinetic 571 | . . . 509 . 62 Thermal 47 | . . 34 13 . . Explosive . | . . . . . . Electromagnetic 30 | . . 30 . . . Impact . | . . . . . . Slashing . | . . . . . . Piercing . | . . . . . . Highest Corruption . | . . . . . . Average Corruption . | . . . . . . Corruption Purged . | . . . . . . Corruption Blocked . | . . . . . . Overload Shots . | . . . . . . Overflow Damage . | . . . . . . Projectiles . | . . . . . . Explosions . | . . . . . . Melee . | . . . . . . Knockbacks . | . . . . . . Impact . | . . . . . . Kinetic . | . . . . . . Secondary . | . . . . . . Self-Inflicted Damage . | . . . . . . Shots . | . . . . . . Rammed . | . . . . . . Targets Rammed . | . . . . . . Kicked . | . . . . . . Crushed . | . . . . . . Highest Temperature 177 | . . 177 . 4 . Average Temperature 66 | . . 90 . 2 . Received Heat Transfer 351 | . 18 21 192 . 120 Siege Activations . | . . . . . . Robots Corrupted . | . . . . . . Combat Hostiles . | . . . . . . Parts Fried . | . . . . . . Impact Corruptions . | . . . . . . Robots Melted . | . . . . . . Combat Hostiles . | . . . . . . Parts Melted . | . . . . . . Heat Transferred 111 | . . 74 37 . . Parts Sabotaged . | . . . . . . Parts Stolen . | . . . . . . Parts Stripped . | . . . . . . Power Chain Reactions . | . . . . . . Alert | -11 -10 -10 -10 -8 -8 ------- Run | Yrd Mat Min Sub Rec Scr Peak Influence 99 | . . 99 . 53 . Initial 53 | . . . . 53 . Average 33 | . . 69 . 25 . Maximum Alert Level . | . . . . . . Low Security (%) 100 | 100 100 100 . 100 . Level 1 . | . . . . . . Level 2 . | . . . . . . Level 3 . | . . . . . . Level 4 . | . . . . . . Level 5 . | . . . . . . High Security . | . . . . . . Max Security . | . . . . . . Squads Dispatched . | . . . . . . Investigation . | . . . . . . Extermination . | . . . . . . Reinforcement . | . . . . . . Assault . | . . . . . . Garrison . | . . . . . . Intercept . | . . . . . . Searches Triggered . | . . . . . . Construction Impeded . | . . . . . . Haulers Reinforced . | . . . . . . Active Scanning Responses . | . . . . . . Cargo Convoy Interrupts . | . . . . . . Stealth | -11 -10 -10 -10 -8 -8 --------- Run | Yrd Mat Min Sub Rec Scr Distress Signals . | . . . . . . Communications Jammed . | . . . . . . Distress Signals . | . . . . . . Times Spotted 22 | . 2 2 13 . 5 Peak Tracking Total 9 | . 2 2 6 . 9 Tactical Retreats 4 | . . . 3 . 1 Traps | -11 -10 -10 -10 -8 -8 ------- Run | Yrd Mat Min Sub Rec Scr Traps Triggered . | . . . . . . Indirectly . | . . . . . . Trap Hack Attempts . | . . . . . . Triggered . | . . . . . . Disarmed . | . . . . . . Reprogrammed . | . . . . . . Reused . | . . . . . . Traps Extracted . | . . . . . . Installed . | . . . . . . Triggered . | . . . . . . Most Traps Carried 1 | . . . . 1 . Machines | -11 -10 -10 -10 -8 -8 ---------- Run | Yrd Mat Min Sub Rec Scr Machines Disabled 3 | . . . 1 . 2 Max in Single Turn 1 | . . . 1 . 1 Machines Repaired . | . . . . . . Machines Dismantled . | . . . . . . Machines Sabotaged . | . . . . . . Overloaded Fab Kills . | . . . . . . Hacking | -11 -10 -10 -10 -8 -8 --------- Run | Yrd Mat Min Sub Rec Scr Machines Accessed 14 | . . . . 10 4 Terminals 6 | . . . . 6 . Fabricators . | . . . . . . Repair Stations . | . . . . . . Recycling Units 4 | . . . . 4 . Scanalyzers . | . . . . . . Garrison Access . | . . . . . . Total Hacks 66 | . . . . 38 28 Successful 53 | . . . . 25 28 Failed 13 | . . . . 13 . Catastrophic . | . . . . . . Database Lockouts . | . . . . . . Manual 14 | . . . . 14 . Terminals 18 | . . . . 18 . Fabricators . | . . . . . . Repair Stations . | . . . . . . Recycling Units 20 | . . . . 20 . Scanalyzers . | . . . . . . Garrison Access . | . . . . . . Terminal Hacks 31 | . . . . 3 28 Record 20 | . . . . . 20 Robot Analysis 7 | . . . . . 7 Prototype ID Bank 3 | . . . . 3 . Open Door 1 | . . . . . 1 Fabricator Hacks . | . . . . . . Repair Station Hacks . | . . . . . . Recycling Unit Hacks 16 | . . . . 16 . Recycle Component 5 | . . . . 5 . Process 5 | . . . . 5 . Report Inventory 1 | . . . . 1 . Retrieve Matter 5 | . . . . 5 . Scanalyzer . | . . . . . . Garrison Access Hacks . | . . . . . . Unauthorized Hacks 6 | . . . . 6 . Terminals 6 | . . . . 6 . Botnet 6 | . . . . 6 . Fabricators . | . . . . . . Repair Stations . | . . . . . . Recycling Units . | . . . . . . Scanalyzers . | . . . . . . Garrison Access . | . . . . . . Data Cores Recovered . | . . . . . . Used . | . . . . . . Hacking Detections 9 | . . . . 9 . Full Trace Events 1 | . . . . 1 . Feedback Events . | . . . . . . Feedback Blocked . | . . . . . . Robot Schematics Acquired . | . . . . . . Robots Built . | . . . . . . Authchips . | . . . . . . Time . | . . . . . . Total Robot Build Rating . | . . . . . . Part Schematics Acquired . | . . . . . . Parts Built . | . . . . . . Authchips . | . . . . . . Time . | . . . . . . Total Part Build Rating . | . . . . . . Parts Repaired . | . . . . . . Time . | . . . . . . Parts Recycled 5 | . . . . 5 . Recycled Matter 199 | . . . . 199 . Retrieved Matter 78 | . . . . 78 . Retrieved Components . | . . . . . . Parts Scanalyzed . | . . . . . . Part Schematics Acquired . | . . . . . . Parts Damaged . | . . . . . . Bothacking | -11 -10 -10 -10 -8 -8 ------------ Run | Yrd Mat Min Sub Rec Scr Used RIF Installer . | . . . . . . Robots Hacked . | . . . . . . Non-combat . | . . . . . . Combat . | . . . . . . Robot Hacks Applied . | . . . . . . Relay Couplers Released . | . . . . . . Fabnet Peak Effective % . | . . . . . . Robots Rewired . | . . . . . . Allies Hacked . | . . . . . . Hacks Repelled . | . . . . . . Allies | -11 -10 -10 -10 -8 -8 -------- Run | Yrd Mat Min Sub Rec Scr Total Allies 2 | . . 2 . . . Largest Group 2 | . . 2 2 . . Highest-Rated Group 46 | . . 46 46 . . Highest-Rated Ally 31 | . . 31 31 . . Total Orders . | . . . . . . Ally Attacks 19 | . . 2 17 . . Total Damage 315 | . . 14 301 . . Kills 5 | . . 1 4 . . Allies Corrupted . | . . . . . . Allies Melted . | . . . . . . Intel | -11 -10 -10 -10 -8 -8 ------- Run | Yrd Mat Min Sub Rec Scr Robot Analysis Total 7 | . . . . . 7 Derelict Logs Recovered 5 | . . 2 . . 3 Drone Launches 3 | . . . . . 3 Drone Recoveries . | . . . . . . Exploration | -11 -10 -10 -10 -8 -8 ------------- Run | Yrd Mat Min Sub Rec Scr Turns Passed 4765 | 2 47 247 621 961 2887 Spaces Moved 2935 | 1 38 178 338 435 1945 Core 451 | . . . . . 451 Treads 328 | . . 11 317 . . Legs 2156 | 1 38 167 21 435 1494 Wheels . | . . . . . . Hover . | . . . . . . Flight . | . . . . . . Fastest Speed 50 | 120 120 120 130 130 50 Average Speed 120 | 120 120 122 158 130 111 Slowest Speed 160 | 120 120 160 160 130 150 Overloaded Moves . | . . . . . . Propulsion Burnouts . | . . . . . . Robots Hopped . | . . . . . . Cave-ins Triggered . | . . . . . . Exploration Rate (%) 42 | 2 12 38 17 99 86 Regions Visited 5 Branch Regions 4 Pre-discovered Areas 8 | . . 1 . . 7 Known Exits Taken 1 | . . 1 . . . Unknown Exits Taken 4 | 1 1 . 1 1 . Scrap Searched 9 | . . . . . 9 Spaces Dug 3 | . . . . 1 2 Terrain Destroyed 5 | . . . 1 2 2 Melee 2 | . . . . . 2 Projectile 3 | . . . 1 2 . AOE . | . . . . . . Terrain Rammed . | . . . . . . Walls Destroyed . | . . . . . . Machines Disabled . | . . . . . . Actions | -11 -10 -10 -10 -8 -8 --------- Run | Yrd Mat Min Sub Rec Scr Total 4104 | 1 39 198 383 830 2653 Wait 1054 | . . 2 1 374 677 Move 2930 | . 37 177 337 434 1945 Hop . | . . . . . . Pick Up 21 | . 1 2 4 8 6 Fast Attach 7 | . . 3 3 . 1 Attach 5 | . . 1 1 1 2 Detach 9 | . . 3 1 1 4 Swap 6 | 1 1 1 2 1 . Drop 31 | . . 3 10 7 11 Fire 37 | . . 6 24 4 3 Melee 4 | . . . . . 4 Ram . | . . . . . . Kick . | . . . . . . Crush . | . . . . . . Escape Stasis . | . . . . . . Rewire . | . . . . . . Trap . | . . . . . . Miscellaneous . | . . . . . . Route ------- -11/Scrapyard -10/Materials -10/Mines -10/Subcaves -8/Recycling (discovered 2 exits: [*Fac] / *Scr) -8/Scraptown (discovered 1 exit: [*Fac]) History --------- Turn | Location | Event 3 | -11/Scrapyard | Discovered new exit (range 0) 3 | -11/Scrapyard | Entered Materials 32 | -10/Materials | Discovered new exit (range 16) 50 | -10/Materials | Entered Mines 205 | -10/Mines | Identified exit to Subcaves 243 | -10/Mines | Learned location of Zion (-7) 269 | -10/Mines | A weapon hastily lodged in a ceiling crevice suddenly fell to the ground 297 | -10/Mines | Entered Subcaves 297 | -10/Subcaves | Accompanied by 2 allies 302 | -10/Subcaves | Led the pair of lost Derelicts to an unsafe place 317 | -10/Subcaves | Build established: Mutant 693 | -10/Subcaves | Core integrity fell below 50% 699 | -10/Subcaves | Discovered new exit (range 15) 744 | -10/Subcaves | A swath of the cavern ceiling suddenly collapsed 918 | -10/Subcaves | Entered Recycling 1166 | -8/Recycling | Build established: Scavenger-Mutant 1746 | -8/Recycling | Discovered new exit (range 7) 1849 | -8/Recycling | Scanned before Scraplab entrance 1867 | -8/Recycling | Entered Scraplab 1878 | -8/Recycling | Discovered new exit (range 2) 1879 | -8/Recycling | Entered Scraptown 2462 | -8/Scraptown | Scanned Subdweller tech in exchange for log data 2469 | -8/Scraptown | Learned location of Extension (-4) 2470 | -8/Scraptown | Learned Factory terminal intel 2504 | -8/Scraptown | Discovered new exit (range 13) 2674 | -8/Scraptown | Visited TADAMA 2693 | -8/Scraptown | Visited Cave Peace 2731 | -8/Scraptown | Visited The Evicted 2761 | -8/Scraptown | Visited CR-KLE's Repair Center 2779 | -8/Scraptown | Visited Bundlers 3125 | -8/Scraptown | Visited Cyclists 3206 | -8/Scraptown | Visited Comm Corps 3231 | -8/Scraptown | Visited UFD Registry 3231 | -8/Scraptown | Registered with UFD as "Matrixdriver" 3368 | -8/Scraptown | Guru changed UFD alias to "Hellgrid" 3492 | -8/Scraptown | Visited LU-1G1's Boring Crew 3542 | -8/Scraptown | Visited Abandonware Association 3557 | -8/Scraptown | Learned abandonware demo "MELTYB.EXE" 3589 | -8/Scraptown | Visited Science Testing Area 3625 | -8/Scraptown | Visited A0-MCA Data Center 3633 | -8/Scraptown | Given a B+ rating by A0-MCA 3635 | -8/Scraptown | Found A0-MCA's Component Scanner 3701 | -8/Scraptown | Visited Scrap Suit Storage 3747 | -8/Scraptown | Visited Analyses Database 3770 | -8/Scraptown | Visited Curators Association 3826 | -8/Scraptown | Visited Sword Containment 3873 | -8/Scraptown | Visited Chapter 10 3952 | -8/Scraptown | Visited Cartography Club 4016 | -8/Scraptown | Found Surveybot 17 Chip 4074 | -8/Scraptown | Learned location of Proximity Caves (-5) 4074 | -8/Scraptown | Learned location of Warlord (-5) 4074 | -8/Scraptown | Learned location of Quarantine (-3) 4074 | -8/Scraptown | Learned 4 Mines zone layouts 4074 | -8/Scraptown | Learned 4 Storage zone layouts 4074 | -8/Scraptown | Learned 16 Lower Caves zone layouts 4074 | -8/Scraptown | Learned 20 Upper Caves zone layouts 4074 | -8/Scraptown | Learned 16 Proximity Caves zone layouts 4074 | -8/Scraptown | Learned location of 1 exit from Lower Caves 4074 | -8/Scraptown | Learned location of 2 exits from Lower Caves 4351 | -8/Scraptown | Build established: Mutant 4735 | -8/Scraptown | Attacked by Scraptown defenders 4765 | -8/Scraptown | Core integrity fell below 20% 4766 | -8/Scraptown | Destroyed by B4-BJW(j) with Overtuned Pulse Rifle Last Messages --------------- 04424_ SQ-QIF(p): "Ugh, more debugging..." 04474_ A sign before the barrier simply reads "NO DIGGING". 04735_ Super Scrap Suits breached. 04735_ ANNOUNCEMENT: Intruder alert! Defend Scraptown! 04737_ LOCAL NARROWCAST: You don't have permission to be in here, but that's okay because it's just doing its job as a honeypot for traitors, TRAITOR! Companion Sword: "What am I to you, a shovel?" 04748_ Mapping Drone destroyed. 04750_ Machine disabled. Companion Sword: "If you're not going to use me, just drop me and get it over with." 04759_ The unstable cave ceiling collapses. 04761_ Mapping Drone destroyed. 04762_ Machine disabled. 04765_ Mapping Drone Bay destroyed. 04766_ >> Lost connection to Mapping Drone. Map ----- +----------------------------------------------------+ | ##########################??###########? "??#?#??? | | #######"""##"""##""|##"""##?## ####### ??##????#? | | #######"" ##""!##"" ##!!"#### ###### ##?????? | | #######"" #??##?? | | ####### #???#?? | | ############################# #######?##????#?? | | #######################?###### ######??####?#???? | | # # ######################## ######?####??????? | | # ## ############# ## ## #"###"#?#?#??#? | | # #""""""""""## ## #### "!" ######??? | | # ### " ## ## #" """ "##???? | | #### ### ""## ## ##"" ""###?#?# | | # # ### ""## ## ##=" "&##??##? | | # ### """"## ## ##"" ""#####?? | | ## # ### " ""###### ###### #" "##?#?? | | # # ## """"#####X ####?# ##"" ""#####?? | | ## ##### ""### ### ##]" "!###??#? | | ! ### "### ### ##"" ""#####?? | | = # ### ### #" "###### | | ########### ########### ##### ## ############### | | ########### ########### ####; ## ############### | | """"""""""" """"""""""" """"" "" ############?# | | g r "## """"###### | | "## " "###### | | j "## X"###### | | @ "## "###### | | j j ""###### | | """""""""""""""""""""""""""" "## %"###### | | """""""""""""""""""""""""""" ## """ ###?## | | ""###### ################"" "## """"###### | | ""# #?#######?#"" "############## | | ""# X"#####?####"" "## #"""""# # | | ""# "" "" ##?##??#??#"" "## !!!!# # | | ""# "" "" X"####?#####"" "## ## ## | | ""#? " " ######### #"" "## X" ## | | "" "" ## | | "" "" "## % ## | | ""# " " ######### #"" "## !!!! !## | | ""# "" "" ""######?###"" "## #"""""#""## | | ""#? "" "" #?##?#??###"" "############## | | ""#?? ""#?#?######"" "##########?### | | ""#?? ##?##?#####"" "############## | | ""###### ################"" "############## | | """""""""""""""""""""""""""" "## """""""""## | | """""""""""""""""""""""""""" ""!""""""## | | "## """""""""## | | "## """"## | | "## """"## | | ## " """"## | | # """""""""## | +----------------------------------------------------+ Best States ------------- Heat Dissipation 35 Coolant Potential 50 Energy Generation 15 Energy Capacity 200 Matter Stores 300 Matter Capacity 300 Sight Range 16 Terrain Scan Density 10 Evasion (%) 55 Recoil Reduction 2 Item Schematics ----------------- None Robot Schematics ------------------ None Fabricated ------------ Nothing Alien Tech Used ----------------- None Achievements -------------- Quantum Hacking Challenges ------------ None Game ------ Seed SpectralVisualFemtoactuators Manual? 0 Play Time 00:34:22 Cumulative 204.4 hours Start 2025.03.16 @ 14:40:39 End 2025.03.16 @ 15:15:44 Sessions 1 Manual Loads 0 Difficulty Rogue Special Mode None Game No. 147 Rogue 147 Adventurer 0 Explorer 0 Win Type - Total 12 Types 11/0/0/1/0/0/0/0/0 Lore% 80 Gallery% 70 Achievement% 56 Wizard Run 0 Options --------- Layout 2 ASCII 1 Keyboard 1 Movement Arrows Keybinds 0 Fullscreen 1 Font 24/Proggy Map View 50x44 Zoom Use 0% Tactical HUD 1 Map Filters NONE Filters NONE Steam 1 RUN: 44a6446a-3f2a-46c9-a407-b49747d6a333